bitfinex-derivatives/quotes_BTCF0:USTF0_20250711
["timestamp","ask_amount","ask_price","bid_price","bid_amount"]
[1752219589363,0.30766073,118130.0,118120.0,0.01088]
[1752219589563,0.37469573,118130.0,118120.0,2.10676811]
[1752219589855,0.37469573,118130.0,118120.0,2.10744811]
[1752219590065,0.37469573,118130.0,118120.0,2.17054811]
[1752219590562,0.33238073,118130.0,118120.0,2.17054811]
[1752219590762,0.33438073,118130.0,118120.0,2.1468002]
[1752219591064,0.33438073,118130.0,118120.0,2.17061546]
[1752219591262,0.29206573,118130.0,118120.0,2.17061546]
[1752219591462,0.24975423,118130.0,118120.0,2.17061546]
[1752219591655,0.08049723,118130.0,118120.0,2.17061546]
[1752219591856,0.05577723,118130.0,118120.0,2.17061546]
[1752219592056,0.05577723,118130.0,118120.0,2.59417258]
[1752219592257,0.24974313,118130.0,118120.0,2.17061546]
[1752219592657,0.24974313,118130.0,118120.0,2.17060215]
[1752219593162,0.24974313,118130.0,118120.0,1.58332215]
[1752219593869,0.24974313,118130.0,118120.0,0.99616215]
[1752219594059,0.24974313,118130.0,118120.0,1.58332215]
[1752219595165,0.24974303,118130.0,118120.0,1.58332215]
[1752219596964,0.24974303,118130.0,118120.0,1.57648215]
[1752219597154,0.28234303,118130.0,118120.0,1.40722195]
[1752219597357,0.28234303,118130.0,118120.0,1.57648215]
[1752219597563,0.70590015,118130.0,118120.0,0.82006195]
[1752219597765,0.73890015,118130.0,118120.0,0.02448195]
[1752219597964,1.09970015,118130.0,118120.0,0.00068]
[1752219598264,0.2293945,118110.0,118100.0,0.95872]
[1752219598466,0.65295162,118110.0,118100.0,0.98325049]
[1752219598761,0.71855162,118110.0,118100.0,0.98325049]
[1752219598968,0.65650512,118110.0,118100.0,0.98325049]
[1752219600166,0.67240565,118110.0,118100.0,0.98325049]
[1752219601572,0.67240565,118110.0,118100.0,0.39621049]
[1752219601770,0.67240565,118110.0,118100.0,0.98325049]
[1752219601973,0.67240565,118110.0,118100.0,0.39621049]
[1752219602172,0.67240565,118110.0,118100.0,0.98325049]
[1752219602360,0.67240565,118110.0,118100.0,0.97237049]
[1752219602564,0.67240565,118110.0,118100.0,0.38533049]
[1752219602767,0.67240565,118110.0,118100.0,0.97237049]
[1752219604672,0.31089503,118110.0,118100.0,0.97237049]
[1752219604872,0.67240565,118110.0,118100.0,0.97237049]
[1752219605271,0.67240565,118110.0,118100.0,0.98325049]
[1752219605667,0.10862053,118110.0,118100.0,1.52089001]
[1752219605867,0.01590053,118110.0,118100.0,1.55119001]
[1752219606067,0.01590053,118110.0,118100.0,1.60415857]
[1752219607274,0.2293855,118120.0,118110.0,0.1869945]
[1752219607572,0.2293855,118120.0,118110.0,1.01152261]
[1752219607773,0.2293855,118120.0,118110.0,1.01224261]
[1752219608574,0.2303855,118120.0,118110.0,0.84296811]
[1752219608770,0.2303855,118120.0,118110.0,0.48145749]
[1752219608969,0.2303855,118120.0,118110.0,0.65073209]
[1752219609970,0.2056655,118120.0,118110.0,0.67340065]
[1752219610171,0.0364,118120.0,118110.0,0.67340065]
[1752219610471,0.0364,118120.0,118110.0,1.07418457]
[1752219610774,0.2056603,118120.0,118110.0,1.07418457]
[1752219610970,0.2056603,118120.0,118110.0,1.07417959]
[1752219611168,0.2056603,118120.0,118110.0,0.65072711]
[1752219611970,0.2056603,118120.0,118110.0,1.09687609]
[1752219612173,0.2056603,118120.0,118110.0,0.67342361]
[1752219613172,0.2303803,118120.0,118110.0,0.67342361]
[1752219613878,0.2303803,118120.0,118110.0,0.65072711]
[1752219614080,0.2304203,118120.0,118110.0,0.65072711]
[1752219616169,0.2304203,118120.0,118110.0,0.67342361]
[1752219617475,0.2304203,118120.0,118110.0,0.50414901]
[1752219617670,0.65387278,118120.0,118110.0,1.05388901]
[1752219617975,0.71457278,118120.0,118110.0,1.02358901]
[1752219618478,0.71457278,118120.0,118110.0,1.00089251]
[1752219618980,0.71457278,118120.0,118110.0,0.98308551]
[1752219619176,0.2911203,118120.0,118110.0,0.98308551]
[1752219619577,0.71457278,118120.0,118110.0,1.00578201]
[1752219620083,0.2911203,118120.0,118110.0,0.98304551]
[1752219621078,0.2911203,118120.0,118110.0,1.15232011]
[1752219621281,0.2911203,118120.0,118110.0,1.05167589]
[1752219621879,0.2911203,118120.0,118110.0,1.03844201]
[1752219622476,0.2911203,118120.0,118110.0,1.01574551]
[1752219622678,0.2911203,118120.0,118110.0,1.01570551]
[1752219623384,0.71457278,118120.0,118110.0,0.98300551]
[1752219623578,0.71457278,118120.0,118110.0,0.38532551]
[1752219624083,0.71457278,118120.0,118110.0,0.00072]
[1752219624377,0.2276646,118110.0,118100.0,0.9476]
[1752219624582,0.71621708,118110.0,118100.0,0.97212198]
[1752219625285,0.71621708,118110.0,118100.0,0.38532198]
[1752219626186,0.71621708,118110.0,118100.0,0.97208198]
[1752219626384,0.71621708,118110.0,118100.0,0.38532198]
[1752219626586,0.71621708,118110.0,118100.0,0.97208198]
[1752219627688,0.71621708,118110.0,118100.0,0.38532198]
[1752219629990,0.71621708,118110.0,118100.0,0.00068]
[1752219630184,0.1693032,118090.0,118080.0,0.4176902]
[1752219630384,0.2276932,118090.0,118080.0,1.07060579]
[1752219630690,0.69781126,118090.0,118080.0,0.41894579]
[1752219630887,0.6673307,118090.0,118080.0,0.98300929]
[1752219631094,0.6673307,118090.0,118080.0,0.62220929]
[1752219631285,0.6673307,118090.0,118080.0,0.03544929]
[1752219631480,0.6673307,118090.0,118080.0,0.02548929]
[1752219631681,0.6673307,118090.0,118080.0,0.02748929]
[1752219632092,0.6673307,118090.0,118080.0,0.03048929]
[1752219632286,0.6673307,118090.0,118080.0,0.39128929]
[1752219632490,0.6673307,118090.0,118080.0,0.03048929]
[1752219633696,0.6683307,118090.0,118080.0,0.02748929]
[1752219633993,0.67666136,118090.0,118080.0,0.02548929]
[1752219637497,0.67666136,118090.0,118080.0,0.0016937]
[1752219637697,0.67666136,118090.0,118080.0,0.3624937]
[1752219637898,0.67666136,118090.0,118080.0,0.386036]
[1752219638295,0.67666136,118090.0,118080.0,0.025996]
[1752219638494,0.67666136,118090.0,118080.0,0.386036]
[1752219638695,0.67666136,118090.0,118080.0,0.025916]
[1752219638896,0.67666136,118090.0,118080.0,0.025236]
[1752219640699,0.67666136,118090.0,118080.0,0.386036]
[1752219640902,0.67666136,118090.0,118080.0,0.386716]
[1752219642100,0.67666136,118090.0,118080.0,0.025916]
[1752219642302,0.67666136,118090.0,118080.0,0.025236]
[1752219643103,0.67666136,118090.0,118080.0,0.386036]
[1752219643404,0.67666136,118090.0,118080.0,0.386756]
[1752219644803,0.67666136,118090.0,118080.0,0.38674116]
[1752219645309,0.67666136,118090.0,118080.0,0.41774116]
[1752219646596,0.07525558,118090.0,118080.0,2.13440068]
[1752219646800,0.01686558,118090.0,118080.0,2.16570068]
[1752219647103,0.01686558,118090.0,118080.0,2.18839456]
[1752219648004,0.01686558,118090.0,118080.0,2.20163032]
[1752219648599,0.18516878,118090.0,118080.0,2.20163033]
[1752219649006,0.01586558,118090.0,118080.0,2.20163033]
[1752219649204,0.01586558,118090.0,118080.0,2.19139456]
[1752219649401,0.01586558,118090.0,118080.0,2.19339456]
[1752219649600,0.18516878,118090.0,118080.0,2.20663027]
[1752219651201,0.18516878,118090.0,118080.0,2.18393639]
[1752219652907,0.18516878,118090.0,118080.0,2.19340882]
[1752219653104,0.18516878,118090.0,118080.0,2.183937]
[1752219653504,0.21979878,118090.0,118080.0,2.183937]
[1752219654210,0.21979878,118090.0,118080.0,1.82226508]
[1752219654404,0.24195878,118090.0,118080.0,2.183937]
[1752219654603,0.24195878,118090.0,118080.0,1.82226508]
[1752219656005,0.24195878,118090.0,118080.0,1.82206508]
[1752219657106,0.24195878,118090.0,118080.0,0.64870498]
[1752219657313,0.6036307,118090.0,118080.0,1.23518505]
[1752219657513,0.6036307,118090.0,118080.0,0.65818505]
[1752219657705,0.6036307,118090.0,118080.0,1.07072755]
[1752219657905,0.6036307,118090.0,118080.0,0.48428755]
[1752219658106,0.6362307,118090.0,118080.0,1.03942755]
[1752219658313,0.6676307,118090.0,118080.0,0.45298755]
[1752219658518,0.6676307,118090.0,118080.0,1.00069755]
[1752219658519,0.30595878,118090.0,118080.0,1.00069755]
[1752219658721,0.6676307,118090.0,118080.0,1.00069755]
[1752219659009,0.6676307,118090.0,118080.0,0.97798116]
[1752219659518,0.6676707,118090.0,118080.0,0.97798116]
[1752219660107,0.6676707,118090.0,118080.0,0.03074116]
[1752219660306,2.03511063,118090.0,118080.0,0.03002116]
[1752219660509,0.2684571,118070.0,118060.0,0.02272437]
[1752219660812,1.79681102,118070.0,118050.0,0.40111824]
[1752219661005,0.65090812,118060.0,118050.0,0.38420437]
[1752219661205,0.65090812,118060.0,118050.0,0.40247828]
[1752219661412,0.65090812,118060.0,118050.0,0.40179828]
[1752219662012,0.2892362,118060.0,118050.0,0.40179828]
[1752219662209,0.65090812,118060.0,118050.0,0.40179828]
[1752219662412,0.65190812,118060.0,118050.0,0.40179828]
[1752219662808,0.65190812,118060.0,118050.0,0.37907391]
[1752219663004,0.66051257,118060.0,118050.0,0.37907391]
[1752219663513,0.66055257,118060.0,118050.0,0.37907391]
[1752219663812,0.72728477,118060.0,118050.0,0.37907391]
[1752219664013,0.36561285,118060.0,118050.0,0.37907391]
[1752219664215,1.31372477,118060.0,118050.0,0.40296391]
[1752219664816,1.31672477,118060.0,118050.0,0.40296391]
[1752219671314,0.95505285,118060.0,118050.0,0.43756391]
[1752219671514,1.31672477,118060.0,118050.0,0.46966391]
[1752219671918,1.31672477,118060.0,118050.0,0.43506391]
[1752219672619,1.31672477,118060.0,118050.0,0.45799433]
[1752219674322,1.31672477,118060.0,118050.0,0.43506391]
[1752219675123,1.31672477,118060.0,118050.0,0.40296391]
[1752219676928,1.31672477,118060.0,118050.0,0.37907391]
[1752219684026,1.31672477,118060.0,118050.0,0.36148]
[1752219684223,0.1910506,118050.0,118040.0,0.00169427]
[1752219684417,1.38966737,118050.0,118040.0,0.00169427]
[1752219684624,0.2264193,118030.0,118020.0,0.3608]
[1752219684926,1.19054667,118030.0,118020.0,0.3608]
[1752219685129,1.25424667,118030.0,118020.0,0.3608]
[1752219685428,1.25424667,118030.0,118020.0,0.37819808]
[1752219686428,1.25424667,118030.0,118020.0,0.41129808]
[1752219687033,1.25424667,118030.0,118020.0,0.43422518]
[1752219688028,1.25424667,118030.0,118020.0,0.41177808]
[1752219688029,1.25472667,118030.0,118020.0,0.41177808]
[1752219690629,1.25472667,118030.0,118020.0,0.43465596]
[1752219691034,1.25468667,118030.0,118020.0,0.41177808]
[1752219691228,1.25468667,118030.0,118020.0,0.43465599]
[1752219691533,1.25468667,118030.0,118020.0,0.45837599]
[1752219691930,1.25468667,118030.0,118020.0,0.43549808]
[1752219692427,0.24303475,118030.0,118020.0,0.8328]
[1752219692629,0.24255475,118030.0,118020.0,1.05658001]
[1752219692933,0.01613545,118030.0,118020.0,1.05658001]
[1752219694540,0.01613545,118030.0,118020.0,1.07921997]
[1752219694834,0.1693806,118040.0,118030.0,0.2132191]
[1752219695041,0.1693806,118040.0,118030.0,2.19268763]
[1752219695237,0.002,118050.0,118040.0,0.2132048]
[1752219695445,0.1713604,118050.0,118040.0,1.01520962]
[1752219695941,0.1713604,118050.0,118040.0,1.01420962]
[1752219696842,0.1713604,118050.0,118040.0,1.01620962]
[1752219697244,0.1733604,118050.0,118040.0,1.01620962]
[1752219697444,0.1733604,118050.0,118040.0,0.6545377]
[1752219697646,0.2087004,118050.0,118040.0,1.03910133]
[1752219697945,0.2067004,118050.0,118040.0,1.04110133]
[1752219698144,0.2067004,118050.0,118040.0,1.04158133]
[1752219698342,0.2067004,118050.0,118040.0,1.03958133]
[1752219698644,0.2067004,118050.0,118040.0,1.04058133]
[1752219699437,0.2067004,118050.0,118040.0,1.04158133]
[1752219700034,0.2067004,118050.0,118040.0,1.05482225]
[1752219701236,0.002,118050.0,118040.0,1.05482225]
[1752219701434,0.1713604,118050.0,118040.0,1.05482225]
[1752219702045,0.2067004,118050.0,118040.0,1.05482225]
[1752219703840,0.22299894,118050.0,118040.0,1.05482225]
[1752219704035,0.60636086,118050.0,118040.0,0.16397553]
[1752219704238,0.60636086,118050.0,118040.0,1.11037553]
[1752219704646,0.24472894,118050.0,118040.0,1.11037553]
[1752219705540,0.24472894,118050.0,118040.0,1.27975156]
[1752219706038,0.24472894,118050.0,118040.0,1.26181866]
[1752219707037,0.2284304,118050.0,118040.0,1.27943683]
[1752219707445,0.2284304,118050.0,118040.0,1.64110875]
[1752219707645,0.2284304,118050.0,118040.0,1.27943683]
[1752219708043,0.2284304,118050.0,118040.0,1.27999683]
[1752219708744,0.2284304,118050.0,118040.0,1.64166875]
[1752219709552,0.2284304,118050.0,118040.0,1.27999683]
[1752219710957,0.2284304,118050.0,118040.0,0.69391683]
[1752219711143,0.2284304,118050.0,118040.0,1.27987683]
[1752219712152,0.2284304,118050.0,118040.0,1.26663468]
[1752219713151,0.2284304,118050.0,118040.0,1.27987663]
[1752219713653,0.2284304,118050.0,118040.0,1.26663468]
[1752219715456,0.2284304,118050.0,118040.0,1.2798765]
[1752219715853,0.1714004,118050.0,118040.0,1.64146842]
[1752219716253,0.1714004,118050.0,118040.0,1.6282266]
[1752219717953,0.1714004,118050.0,118040.0,1.64146753]
[1752219719157,0.59066232,118050.0,118040.0,0.50692264]
[1752219719359,0.59066232,118050.0,118040.0,1.04922171]
[1752219719551,0.62176232,118050.0,118040.0,0.44327171]
[1752219719755,0.65186232,118050.0,118040.0,0.99781171]
[1752219719950,0.65186232,118050.0,118040.0,1.01750171]
[1752219720151,0.2901904,118050.0,118040.0,0.43166171]
[1752219720354,0.65186232,118050.0,118040.0,1.01746171]
[1752219720653,0.85118032,118050.0,118040.0,0.43166171]
[1752219720854,0.85118032,118050.0,118040.0,0.41197171]
[1752219721059,0.85118032,118050.0,118040.0,0.00456]
[1752219721060,1.25763504,118050.0,118040.0,0.00456]
[1752219721257,0.89683504,118050.0,118040.0,0.004]
[1752219721950,1.25763504,118050.0,118040.0,0.004]
[1752219722654,0.89596312,118050.0,118040.0,0.004]
[1752219722853,1.25763504,118050.0,118040.0,0.004]
[1752219723056,0.85162032,118050.0,118040.0,0.02696038]
[1752219723556,0.85162032,118050.0,118040.0,0.02496038]
[1752219723759,0.85362032,118050.0,118040.0,0.02496038]
[1752219724957,0.89927504,118050.0,118040.0,0.02496038]
[1752219725258,0.85362032,118050.0,118040.0,0.02296038]
[1752219725451,0.85562032,118050.0,118040.0,0.02296038]
[1752219726461,0.1921648,118040.0,118030.0,0.96848]
[1752219726662,0.65283672,118040.0,118030.0,1.16126498]
[1752219726856,0.12231001,118040.0,118030.0,1.18095498]
[1752219727062,0.2269648,118040.0,118030.0,1.5729269]
[1752219727257,0.27261952,118040.0,118030.0,1.58121102]
[1752219727661,0.2279648,118040.0,118030.0,0.4363728]
[1752219727860,0.65203672,118040.0,118030.0,0.99183406]
[1752219728562,0.65303672,118040.0,118030.0,0.99183406]
[1752219729962,0.65307672,118040.0,118030.0,0.99183406]
[1752219730164,0.85239472,118040.0,118030.0,0.99183406]
[1752219730963,0.86069891,118040.0,118030.0,0.99183406]
[1752219732365,0.86069891,118040.0,118030.0,0.40607406]
[1752219732562,1.80809083,118040.0,118030.0,0.38419406]
[1752219732764,1.80809083,118040.0,118030.0,0.02291406]
[1752219733166,1.80857084,118040.0,118030.0,0.02291406]
[1752219733366,0.2269791,118030.0,118020.0,0.3608]
[1752219733566,0.71302092,118030.0,118020.0,0.36128]
[1752219733765,0.71350092,118030.0,118020.0,0.36128]
[1752219734263,0.66781225,118030.0,118020.0,0.36128]
[1752219735261,0.86713025,118030.0,118020.0,0.36128]
[1752219735866,0.86713025,118030.0,118020.0,0.38418638]
[1752219737065,0.86717025,118030.0,118020.0,0.38418638]
[1752219737566,0.86717025,118030.0,118020.0,0.38518638]
[1752219738561,0.86717025,118030.0,118020.0,0.00148]
[1752219738762,0.91285892,118030.0,118020.0,0.001]
[1752219739669,0.86717025,118030.0,118020.0,0.001]
[1752219739969,0.1917579,118010.0,118000.0,0.36249484]
[1752219740171,1.25779214,118010.0,118000.0,0.38528165]
[1752219740467,1.31939214,118010.0,118000.0,0.38528165]
[1752219741965,1.31939214,118010.0,118000.0,0.40846165]
[1752219742767,1.31943214,118010.0,118000.0,0.41146165]
[1752219743071,1.31943214,118010.0,118000.0,0.38828165]
[1752219743966,1.32043214,118010.0,118000.0,0.38528165]
[1752219744866,1.32043214,118010.0,118000.0,0.38728165]
[1752219745067,1.32043214,118010.0,118000.0,0.41046165]
[1752219745271,1.51975014,118010.0,118000.0,0.44376165]
[1752219745771,1.52023014,118010.0,118000.0,0.44424165]
[1752219746572,1.52123014,118010.0,118000.0,0.44224165]
[1752219747769,1.52123014,118010.0,118000.0,0.41906165]
[1752219748975,1.52123014,118010.0,118000.0,0.43230792]
[1752219749173,1.52123014,118010.0,118000.0,0.45548792]
[1752219749474,1.52123014,118010.0,118000.0,0.44224165]
[1752219751578,1.52123014,118010.0,118000.0,0.41906165]
[1752219752175,1.88203014,118010.0,118000.0,0.05826165]
[1752219752380,1.88203014,118010.0,118000.0,0.00169484]
[1752219753773,2.28931073,118010.0,118000.0,4e-08]
[1752219754481,2.24362206,118010.0,118000.0,4e-08]
[1752219756285,2.28931073,118010.0,118000.0,4e-08]
[1752219756876,1.65802206,118010.0,118000.0,4e-08]
[1752219757185,1.88195014,118010.0,118000.0,4e-08]
[1752219758174,1.92760995,118010.0,118000.0,4e-08]
[1752219760284,2.28928187,118010.0,118000.0,4e-08]
[1752219761984,2.28926153,118010.0,118000.0,4e-08]
[1752219762782,2.24362206,118010.0,118000.0,4e-08]
[1752219762981,2.28926188,118010.0,118000.0,4e-08]
[1752219765086,2.24362206,118010.0,118000.0,4e-08]
[1752219765890,2.2892435,118010.0,118000.0,4e-08]
[1752219766283,2.24362206,118010.0,118000.0,4e-08]
[1752219766480,1.34196807,118010.0,118000.0,4e-08]
[1752219766685,0.87395014,118010.0,118000.0,0.38327004]
[1752219766887,1.45947014,118010.0,118000.0,0.38327004]
[1752219767089,1.45947014,118010.0,118000.0,0.05447004]
[1752219767393,1.50508417,118010.0,118000.0,0.05447004]
[1752219767691,1.50508417,118010.0,118000.0,0.08527004]
[1752219768384,1.50508417,118010.0,118000.0,0.06280004]
[1752219768886,1.53708417,118010.0,118000.0,0.06280004]
[1752219769584,1.49147014,118010.0,118000.0,0.06280004]
[1752219772891,1.53708417,118010.0,118000.0,0.06280004]
[1752219773197,1.49147014,118010.0,118000.0,0.03200004]
[1752219774192,1.53708417,118010.0,118000.0,0.03200004]
[1752219775098,1.56898417,118010.0,118000.0,0.03190004]
[1752219776389,1.57098417,118010.0,118000.0,0.03190004]
[1752219776592,1.58581852,118010.0,118000.0,0.03190004]
[1752219776897,1.57086182,118010.0,118000.0,0.03190004]
[1752219777397,1.53896182,118010.0,118000.0,0.03190004]
[1752219777596,0.5599299,118010.0,118000.0,0.44827004]
[1752219777892,1.03117624,118010.0,118000.0,0.46546004]
[1752219778296,1.39284816,118010.0,118000.0,0.46546004]
[1752219778697,1.03121624,118010.0,118000.0,0.46546004]
[1752219778904,0.44589624,118010.0,118000.0,0.63489224]
[1752219779195,0.49155906,118010.0,118000.0,0.99656416]
[1752219779598,0.49155906,118010.0,118000.0,0.63489224]
[1752219780098,0.26582116,118010.0,118000.0,1.83188416]
[1752219780298,0.21544116,118010.0,118000.0,2.00137216]
[1752219780495,0.11987834,118010.0,118000.0,2.00137216]
[1752219780695,0.22220614,118010.0,118000.0,2.02440847]
[1752219780904,0.22220614,118010.0,118000.0,1.66273655]
[1752219781201,0.22120614,118010.0,118000.0,1.41273655]
[1752219781394,0.25387614,118010.0,118000.0,1.7876541]
[1752219781595,0.25387614,118010.0,118000.0,1.42598218]
[1752219781895,0.25387614,118010.0,118000.0,1.7876541]
[1752219782098,0.25387614,118010.0,118000.0,1.7906541]
[1752219782296,0.22120614,118010.0,118000.0,1.7906541]
[1752219782698,0.22120614,118010.0,118000.0,2.0426541]
[1752219783203,0.02473251,118010.0,118000.0,2.40780602]
[1752219783791,0.02473251,118010.0,118000.0,2.0461341]
[1752219784000,0.02473251,118010.0,118000.0,2.40780602]
[1752219784201,0.02473251,118010.0,118000.0,2.40680602]
[1752219785902,0.00565651,118010.0,118000.0,2.40680492]
[1752219786306,0.00565651,118010.0,118000.0,2.39356039]
[1752219786802,0.00565651,118010.0,118000.0,2.17001655]
[1752219787000,0.00565651,118010.0,118000.0,2.53168847]
[1752219787196,0.00565651,118010.0,118000.0,1.95981296]
[1752219787393,0.00565651,118010.0,118000.0,2.54493296]
[1752219787792,0.00565651,118010.0,118000.0,2.54193296]
[1752219787992,0.00565651,118010.0,118000.0,2.90560488]
[1752219788198,0.00565651,118010.0,118000.0,2.04393296]
[1752219788697,0.00565651,118010.0,118000.0,2.40560488]
[1752219790302,0.00565651,118010.0,118000.0,1.82048488]
[1752219790506,0.00565651,118010.0,118000.0,2.40559851]
[1752219791602,0.00565651,118010.0,118000.0,2.90559851]
[1752219792401,0.00565651,118010.0,118000.0,2.90559811]
[1752219796505,0.00565651,118010.0,118000.0,2.90359811]
[1752219796706,0.00301651,118010.0,118000.0,2.90359811]
[1752219797306,0.00301651,118010.0,118000.0,2.90366855]
[1752219798012,0.00301651,118010.0,118000.0,2.31858855]
[1752219798310,0.00301651,118010.0,118000.0,2.90350855]
[1752219799112,0.00301651,118010.0,118000.0,2.31858855]
[1752219799313,0.00301651,118010.0,118000.0,2.90346855]
[1752219799518,0.00301651,118010.0,118000.0,1.70691663]
[1752219799716,0.58984623,118010.0,118000.0,1.09356667]
[1752219800010,0.65184623,118010.0,118000.0,0.90166447]
[1752219800206,0.65184623,118010.0,118000.0,1.48654447]
[1752219800512,0.65184623,118010.0,118000.0,1.15597667]
[1752219800707,0.65184623,118010.0,118000.0,1.13283629]
[1752219800910,0.29017431,118010.0,118000.0,1.13283629]
[1752219802111,0.16641933,118010.0,118000.0,1.49450821]
[1752219802305,0.12075651,118010.0,118000.0,1.49450821]
[1752219802510,0.29017401,118010.0,118000.0,1.13283629]
[1752219802713,0.29017401,118010.0,118000.0,1.13283599]
[1752219802910,0.29017401,118010.0,118000.0,0.42437102]
[1752219803413,0.29017401,118010.0,118000.0,1.00925102]
[1752219803613,0.29017401,118010.0,118000.0,0.98655333]
[1752219804017,0.29017401,118010.0,118000.0,1.15598523]
[1752219804316,0.65184593,118010.0,118000.0,1.00925102]
[1752219804518,0.65184593,118010.0,118000.0,1.17868292]
[1752219805116,0.65184593,118010.0,118000.0,1.00925102]
[1752219805314,0.65184593,118010.0,118000.0,0.59380292]
[1752219805615,0.65184593,118010.0,118000.0,1.00925187]
[1752219805810,0.65184593,118010.0,118000.0,0.42437187]
[1752219806018,0.29017401,118010.0,118000.0,1.00925187]
[1752219806913,0.29017401,118010.0,118000.0,0.42437187]
[1752219807114,0.29017401,118010.0,118000.0,1.00925187]
[1752219807615,0.29017401,118010.0,118000.0,0.42437187]
[1752219807816,0.65184593,118010.0,118000.0,1.00929187]
[1752219809620,0.65184593,118010.0,118000.0,0.42437187]
[1752219810221,0.65184593,118010.0,118000.0,0.37552588]
[1752219810422,0.65284593,118010.0,118000.0,0.37552588]
[1752219811123,0.65384593,118010.0,118000.0,0.37452588]
[1752219811817,0.65384593,118010.0,118000.0,0.01372588]
[1752219812026,1.23872593,118010.0,118000.0,0.01324588]
[1752219812320,1.23772593,118010.0,118000.0,0.01324588]
[1752219812723,1.23772593,118010.0,118000.0,0.03598871]
[1752219813723,1.23772593,118010.0,118000.0,0.01324588]
[1752219814625,1.23816593,118010.0,118000.0,0.01324588]
[1752219815617,1.30719956,118010.0,118000.0,0.01324588]
[1752219816716,1.30719956,118010.0,118000.0,0.37404588]
[1752219816917,1.30719956,118010.0,118000.0,0.7361978]
[1752219816918,0.29161401,118010.0,118000.0,0.7361978]
[1752219817117,0.29117401,118010.0,118000.0,0.72295192]
[1752219817314,0.29117401,118010.0,118000.0,0.90563051]
[1752219818025,0.12175651,118010.0,118000.0,0.92838347]
[1752219818221,0.12175651,118010.0,118000.0,0.92938347]
[1752219818419,0.29117401,118010.0,118000.0,0.92938347]
[1752219818620,0.29117401,118010.0,118000.0,0.56771155]
[1752219818824,0.29117401,118010.0,118000.0,0.92938347]
[1752219819626,0.29117401,118010.0,118000.0,0.95225165]
[1752219819821,0.29117401,118010.0,118000.0,0.93900496]
[1752219820022,0.29017401,118010.0,118000.0,0.93900496]
[1752219821927,0.29017401,118010.0,118000.0,0.95225057]
[1752219822828,0.29017401,118010.0,118000.0,0.78281867]
[1752219823030,0.29017401,118010.0,118000.0,1.00594675]
[1752219823228,0.65184593,118010.0,118000.0,1.17537865]
[1752219823824,0.65184593,118010.0,118000.0,1.00594675]
[1752219824026,0.29017401,118010.0,118000.0,1.00594675]
[1752219824433,0.29017401,118010.0,118000.0,1.17537865]
[1752219825131,0.29017401,118010.0,118000.0,1.15262569]
[1752219825430,0.29017401,118010.0,118000.0,1.15262568]
[1752219826724,0.29017401,118010.0,118000.0,1.17537864]
[1752219827630,0.29017401,118010.0,118000.0,0.56782568]
[1752219827829,0.29017401,118010.0,118000.0,1.15258568]
[1752219828032,0.65184593,118010.0,118000.0,1.15258568]
[1752219828233,0.29017401,118010.0,118000.0,1.15258568]
[1752219829226,0.29017401,118010.0,118000.0,0.98315378]
[1752219829427,0.29017401,118010.0,118000.0,1.15258568]
[1752219829628,0.65184593,118010.0,118000.0,0.39839378]
[1752219829830,0.65184593,118010.0,118000.0,0.96986818]
[1752219831135,0.29017401,118010.0,118000.0,0.98311473]
[1752219831334,0.65184593,118010.0,118000.0,0.98311473]
[1752219831629,0.29017401,118010.0,118000.0,1.15254663]
[1752219832031,0.29017401,118010.0,118000.0,0.98311473]
[1752219832234,0.29017401,118010.0,118000.0,0.96986818]
[1752219833338,0.29017401,118010.0,118000.0,0.98311433]
[1752219835533,0.29017401,118010.0,118000.0,0.96986818]
[1752219837128,0.29017401,118010.0,118000.0,0.98311424]
[1752219838833,0.25957401,118010.0,118000.0,1.500972]
[1752219839040,0.25957401,118010.0,118000.0,1.531272]
[1752219839336,0.25957401,118010.0,118000.0,1.54451804]
[1752219839737,0.30529517,118010.0,118000.0,1.531272]
[1752219839936,0.21815517,118010.0,118000.0,1.531272]
[1752219840134,0.21815517,118010.0,118000.0,1.546872]
[1752219840338,0.24999517,118010.0,118000.0,1.546872]
[1752219840533,0.24999517,118010.0,118000.0,1.18520008]
[1752219840734,0.23667401,118010.0,118000.0,1.56011798]
[1752219843742,0.23667401,118010.0,118000.0,0.80596608]
[1752219843936,0.23667401,118010.0,118000.0,0.98299416]
[1752219843937,0.25929401,118010.0,118000.0,0.98299416]
[1752219844137,0.29159401,118010.0,118000.0,0.98299416]
[1752219845443,0.65326593,118010.0,118000.0,0.39839416]
[1752219845742,0.65326593,118010.0,118000.0,0.96970818]
[1752219846240,0.69898709,118010.0,118000.0,0.96970818]
[1752219847044,0.69898709,118010.0,118000.0,0.96966818]
[1752219847942,0.65326593,118010.0,118000.0,0.96966818]
[1752219848144,0.65326593,118010.0,118000.0,0.98291493]
[1752219850442,0.65326593,118010.0,118000.0,0.98191493]
[1752219851139,0.29259401,118010.0,118000.0,0.98191493]
[1752219851338,0.65426593,118010.0,118000.0,0.98191493]
[1752219851935,0.65426593,118010.0,118000.0,0.96866818]
[1752219852533,0.69998709,118010.0,118000.0,0.38414818]
[1752219853137,0.69998709,118010.0,118000.0,0.38438892]
[1752219854241,0.76784912,118010.0,118000.0,0.02358892]
[1752219854438,0.76784912,118010.0,118000.0,2e-08]
[1752219854646,0.2238653,118000.0,117990.0,0.32432642]
[1752219854944,1.59258914,118000.0,117990.0,0.30194132]
[1752219855142,1.59356565,118000.0,117990.0,0.30194132]
[1752219855344,1.63928681,118000.0,117990.0,0.30194132]
[1752219855644,0.1908296,117990.0,117980.0,0.3608]
[1752219855846,0.64843152,117990.0,117980.0,0.3608]
[1752219857347,0.65784467,117990.0,117980.0,0.37404864]
[1752219857639,0.169444,117980.0,117970.0,0.38356648]
[1752219857845,0.64844592,117980.0,117970.0,0.39681531]
[1752219858139,0.64896593,117980.0,117970.0,0.39733531]
[1752219858640,0.20156401,117980.0,117970.0,0.75900723]
[1752219858845,0.1280805,117990.0,117970.0,1.10919158]
[1752219858846,0.2436301,117990.0,117970.0,1.10919158]
[1752219859150,0.2118001,117990.0,117980.0,1.52954604]
[1752219859344,0.2118001,117990.0,117980.0,1.55887487]
[1752219859937,0.2118001,117990.0,117980.0,1.53612475]
[1752219860144,0.17041691,117990.0,117980.0,1.53612475]
[1752219860344,0.17040611,117990.0,117980.0,1.53612475]
[1752219860641,0.17140611,117990.0,117980.0,1.60703616]
[1752219860843,0.17140611,117990.0,117980.0,1.58428928]
[1752219861042,0.17040611,117990.0,117980.0,1.58428928]
[1752219861246,0.00197651,117990.0,117980.0,1.75380128]
[1752219861442,0.17140611,117990.0,117980.0,2.00380128]
[1752219861641,0.17040611,117990.0,117980.0,2.00680128]
[1752219861840,0.17040611,117990.0,117980.0,1.99921425]
[1752219862442,0.00097651,117990.0,117980.0,1.99921425]
[1752219862741,0.00097651,117990.0,117980.0,2.0067986]
[1752219863836,0.00097651,117990.0,117980.0,2.5067986]
[1752219865044,0.00097651,117990.0,117980.0,2.49355245]
[1752219865244,0.00097651,117990.0,117980.0,2.50879773]
[1752219865551,0.00097651,117990.0,117980.0,2.52396356]
[1752219866647,0.00097651,117990.0,117980.0,2.54673634]
[1752219869549,0.00097651,117990.0,117980.0,3.71857634]